bitfinex/quotes_ETHUSD_20250602
["timestamp","ask_amount","ask_price","bid_price","bid_amount"]
[1748894509906,2.85385195,2538.0,2537.9,12.93887174]
[1748894510203,2.85385195,2538.0,2537.9,13.16017604]
[1748894510406,2.85385195,2538.0,2537.9,12.93887174]
[1748894514613,2.85385195,2538.0,2537.9,12.16147174]
[1748894515310,2.85385195,2538.0,2537.9,16.81638162]
[1748894515493,2.85385195,2538.0,2537.9,17.63048162]
[1748894516080,1.90851346,2538.0,2537.9,17.63048162]
[1748894517073,1.90851346,2538.0,2537.9,12.97557174]
[1748894517290,1.90851346,2538.0,2537.9,12.16147174]
[1748894517991,1.90851346,2538.0,2537.9,4.16147174]
[1748894518192,1.90851346,2538.0,2537.9,12.16147174]
[1748894518892,7.3333299,2538.0,2537.9,4.16147174]
[1748894519091,7.3333299,2538.0,2537.9,0.22120617]
[1748894519092,7.8833299,2538.0,2537.9,0.22120617]
[1748894519430,7.8833299,2538.0,2537.9,4.16147174]
[1748894519726,7.8833299,2538.0,2537.9,4.3831346]
[1748894519928,7.8833299,2538.0,2537.9,4.16147174]
[1748894520992,7.2820798,2538.0,2537.9,4.16147174]
[1748894521332,6.93881346,2538.0,2537.9,4.16147174]
[1748894521727,6.93881346,2538.0,2537.9,4.38311637]
[1748894522116,6.93881346,2538.0,2537.9,4.16147174]
[1748894522428,2.68881346,2538.0,2537.9,4.38311811]
[1748894522628,1.90851346,2538.0,2537.9,4.16147174]
[1748894523229,1.90851346,2538.0,2537.9,12.16147174]
[1748894523999,2.72211346,2538.0,2537.9,12.16147174]
[1748894524742,6.96611346,2538.0,2537.9,12.16147174]
[1748894525847,2.72211346,2538.0,2537.9,12.16147174]
[1748894526009,1.90851346,2538.0,2537.9,12.16147174]
[1748894526414,1.90851346,2538.0,2537.9,12.38308188]
[1748894526733,1.90851346,2538.0,2537.9,12.16147174]
[1748894526940,0.6667,2538.1,2538.0,3.94011032]
[1748894527110,0.6667,2538.1,2538.0,3.95956184]
[1748894529556,0.6667,2538.1,2538.0,4.18108741]
[1748894529733,0.6667,2538.1,2538.0,3.95956184]
[1748894530124,0.6667,2538.1,2538.0,4.18081359]
[1748894530331,0.6667,2538.1,2538.0,3.95956184]
[1748894533949,0.6667,2538.1,2538.0,3.94011032]
[1748894534463,0.6667,2538.1,2538.0,3.95955063]
[1748894536750,0.6667,2538.1,2538.0,11.95955063]
[1748894536950,0.6667,2538.1,2538.0,11.94011032]
[1748894537350,0.6667,2538.1,2538.0,12.16128451]
[1748894537664,0.6667,2538.1,2538.0,11.94011032]
[1748894538049,0.6667,2538.1,2538.0,12.16130227]
[1748894538548,0.6667,2538.1,2538.0,11.94011032]
[1748894539068,0.6667,2538.1,2538.0,12.16127159]
[1748894539844,0.6667,2538.1,2538.0,11.94011032]
[1748894541172,0.6667,2538.1,2538.0,12.16134656]
[1748894541466,0.6667,2538.1,2538.0,11.94011032]
[1748894546036,0.6667,2538.1,2538.0,12.71991032]
[1748894546480,0.02,2538.9,2538.8,3.93886875]
[1748894547979,4.221,2538.9,2538.8,3.93886875]
[1748894549134,8.87590988,2538.9,2538.8,3.93886875]
[1748894549479,11.18489087,2538.9,2538.8,3.93886875]
[1748894549683,1.3231,2538.8,2538.7,3.93892613]
[1748894549976,0.55,2538.2,2537.9,0.22120617]
[1748894550178,5.42800988,2538.0,2537.9,4.16146938]
[1748894550563,6.99591087,2538.0,2537.9,4.16146938]
[1748894550951,6.99591087,2538.0,2537.9,0.22120617]
[1748894551585,7.04517152,2538.0,2537.9,0.22120617]
[1748894552396,11.19491087,2538.0,2537.9,4.16147174]
[1748894553065,11.19491087,2538.0,2537.9,0.22120617]
[1748894553658,11.19491087,2538.0,2537.9,4.16147174]
[1748894553853,11.19491087,2538.0,2537.9,0.22120617]
[1748894555501,15.13502119,2538.0,2537.9,0.22120617]
[1748894556359,2.34100099,2538.0,2537.9,0.22120617]
[1748894556559,5.42800988,2538.0,2537.9,4.16147174]
[1748894556761,9.62000988,2538.0,2537.9,4.16147174]
[1748894557073,10.17000988,2538.0,2537.9,4.16147174]
[1748894557285,9.62000988,2538.0,2537.9,4.16147174]
[1748894557590,5.42800988,2538.0,2537.9,4.16147174]
[1748894557900,0.7731,2538.0,2537.9,4.16147174]
[1748894558106,4.9661,2538.0,2537.9,4.16147174]
[1748894559503,0.7731,2538.0,2537.9,4.16147174]
[1748894559807,4.9641,2538.0,2537.9,4.16147174]
[1748894560004,4.9641,2538.0,2537.9,4.38310545]
[1748894560297,4.9641,2538.0,2537.9,4.16147174]
[1748894562320,4.65490988,2538.2,2538.1,3.93995508]
[1748894562321,0.8221,2538.2,2538.1,3.93995508]
[1748894562460,5.0071,2538.2,2538.1,3.93995508]
[1748894562862,0.8221,2538.2,2538.1,3.93995508]
[1748894563060,5.0071,2538.2,2538.1,3.93995508]
[1748894563301,0.8221,2538.2,2538.1,3.93995508]
[1748894563489,5.0071,2538.2,2538.1,3.93995508]
[1748894563714,0.7537,2538.4,2538.3,3.93964464]
[1748894564089,4.9377,2538.4,2538.3,3.93964464]
[1748894565425,4.184,2538.4,2538.3,3.93964464]
[1748894566032,0.777,2538.6,2538.5,3.93933425]
[1748894566194,4.957,2538.6,2538.5,3.93933425]
[1748894567323,4.18,2538.6,2538.5,3.93933425]
[1748894568007,4.70415074,2538.7,2538.6,3.93917907]
[1748894568215,9.43215074,2538.7,2538.6,3.93917907]
[1748894568428,9.43215074,2538.7,2538.3,3.93956833]
[1748894568429,0.55,2538.4,2538.3,3.93956833]
[1748894568633,9.43215806,2538.4,2538.3,3.93956833]
[1748894568829,9.38290988,2538.4,2538.3,3.93956833]
[1748894570113,9.38290988,2538.4,2538.3,4.16110944]
[1748894570317,9.38290988,2538.4,2538.3,3.93956833]
[1748894571355,9.99464943,2538.4,2538.3,3.93956833]
[1748894572120,0.8274,2538.5,2538.4,3.93948944]
[1748894572353,5.04964431,2538.5,2538.4,3.93948944]
[1748894574824,0.02,2538.9,2538.8,3.93886875]
[1748894575023,9.44814818,2538.9,2538.8,3.93886875]
[1748894575223,9.39890988,2538.9,2538.8,3.93886875]
[1748894575448,10.18450988,2538.9,2538.8,3.93886875]
[1748894575836,11.35654235,2538.9,2538.8,3.93886875]
[1748894576042,11.35454235,2538.9,2538.8,3.93886875]
[1748894576431,7.18254235,2538.9,2538.8,4.16030803]
[1748894576731,10.18150988,2538.9,2538.8,4.16030803]
[1748894576946,10.18150988,2538.9,2538.8,3.93886875]
[1748894577761,10.18150988,2538.9,2538.8,4.16029496]
[1748894577967,10.18150988,2538.9,2538.8,3.93886875]
[1748894578163,10.17850988,2538.9,2538.8,3.93886875]
[1748894580128,11.34994235,2538.9,2538.7,3.93894842]
[1748894580329,0.04923955,2538.8,2538.7,3.93894842]
[1748894581160,0.59923955,2538.8,2538.7,3.93894842]
[1748894581366,0.59923955,2538.8,2538.4,3.93936573]
[1748894581367,0.55,2538.7,2538.4,3.93936573]
[1748894581537,5.20490988,2538.5,2538.4,3.93936573]
[1748894581742,9.36690988,2538.5,2538.4,3.93936573]
[1748894583588,1.35931494,2538.6,2538.4,3.93936573]
[1748894583729,4.65490988,2538.7,2538.6,3.93917907]
[1748894583933,9.36590988,2538.7,2538.6,3.93917907]
[1748894585573,10.37940087,2538.7,2538.6,3.93917907]
[1748894586169,10.37940087,2538.7,2538.5,3.93928167]
[1748894586341,10.37940087,2538.7,2538.6,3.93917907]
[1748894586543,0.55,2538.6,2538.4,3.93941487]
[1748894586848,11.28394997,2538.5,2538.4,3.93941487]
[1748894588369,10.19100988,2538.5,2538.4,3.93941487]
[1748894588747,10.19100988,2538.5,2538.4,4.16103284]
[1748894588954,10.19100988,2538.5,2538.4,3.93941487]
[1748894589458,6.03500988,2538.5,2538.4,3.93941487]
[1748894589872,10.18700988,2538.5,2538.4,3.93941487]
[1748894590781,4.65490988,2538.5,2538.4,3.93941487]
[1748894590978,0.04924387,2538.6,2538.5,3.93933425]
[1748894591141,4.152,2538.6,2538.4,3.93941487]
[1748894591541,4.65490988,2538.8,2538.7,3.9390239]
[1748894591778,8.80590988,2538.8,2538.7,3.9390239]
[1748894592271,8.80590988,2538.8,2538.7,4.16056682]
[1748894592477,8.80590988,2538.8,2538.7,3.9390239]
[1748894593583,0.02,2538.9,2538.8,3.93886875]
[1748894593883,0.02,2538.9,2538.8,4.70726875]
[1748894594043,0.02,2539.9,2539.8,11.93731789]
[1748894594244,4.67490988,2539.9,2539.7,3.9374675]
[1748894594491,4.67490988,2539.9,2539.3,0.7901]
[1748894594494,8.88512535,2539.9,2539.3,0.7901]
[1748894594646,4.67490988,2539.9,2539.8,3.93731789]
[1748894594849,0.02,2539.9,2539.8,4.72741789]
[1748894653928,4.144,2539.9,2539.8,3.93731789]
[1748894654927,4.144,2539.9,2539.7,3.93747292]
[1748894654928,13.62299597,2539.9,2539.6,3.9375397]
[1748894655135,0.04921917,2539.8,2539.7,3.93747292]
[1748894656156,0.04921917,2539.8,2539.3,0.7997]
[1748894656157,0.04921917,2539.8,2539.5,3.93770086]
[1748894656335,0.87191917,2539.8,2539.7,3.93747292]
[1748894656948,0.87191917,2539.8,2539.6,3.93762171]
[1748894657153,0.87191917,2539.8,2539.7,3.93747292]
[1748894657471,5.52405716,2539.8,2539.7,3.93747292]
[1748894658672,4.70135716,2539.8,2539.7,3.93747292]
[1748894659176,4.65213799,2539.8,2539.7,3.93747292]
[1748894660201,4.117,2539.8,2539.7,3.93747292]
[1748894660463,1.122,2539.9,2539.8,3.93731789]
[1748894660650,5.239,2539.9,2539.8,3.93731789]
[1748894661138,0.02,2539.9,2539.8,3.93731789]
[1748894661333,4.137,2539.9,2539.8,3.93731789]
[1748894662337,8.78913799,2539.9,2539.8,3.93731789]
[1748894662948,0.02,2539.9,2539.8,3.93731789]
[1748894663354,4.137,2539.9,2539.8,3.93731789]
[1748894664603,0.02,2539.9,2539.8,3.93731789]
[1748894664800,0.02,2539.9,2539.8,12.73490714]
[1748894664953,0.02,2539.9,2539.8,12.71551789]
[1748894678719,0.02,2539.9,2539.8,17.36765588]
[1748894678921,0.02,2539.9,2539.8,12.71551789]
[1748894679790,0.02,2539.9,2539.8,17.36765588]
[1748894681601,0.02,2539.9,2539.8,12.71551789]
[1748894684613,0.02,2539.9,2539.8,17.92951789]
[1748894685622,0.02,2539.9,2539.8,12.71551789]
[1748894686839,0.02,2539.9,2539.8,17.36765588]
[1748894688831,0.02,2539.9,2539.8,22.58165588]
[1748894689037,0.02,2539.9,2539.8,17.36765588]
[1748894689242,0.02,2539.9,2539.8,22.58165588]
[1748894700160,0.02,2539.9,2539.8,23.13165588]
[1748894700859,0.02,2539.9,2539.8,23.13065588]
[1748894701070,0.02,2539.9,2539.8,22.58065588]
[1748894701251,0.02,2539.9,2539.8,17.92851789]
[1748894702170,0.02,2539.9,2539.8,12.71551789]
[1748894702529,0.02,2539.9,2539.8,16.82951789]
[1748894703771,0.02,2539.9,2539.8,21.48165588]
[1748894704071,0.02,2539.9,2539.8,22.58065588]
[1748894704970,0.02,2539.9,2539.8,17.36765588]
[1748894705331,0.02,2539.9,2539.8,22.58065588]
[1748894706668,0.02,2539.9,2539.8,17.92851789]
[1748894711192,0.02,2539.9,2539.8,17.92751789]
[1748894714429,0.02,2539.9,2539.8,12.71551789]
[1748894714722,0.02,2539.9,2539.8,17.92651789]
[1748894717212,0.02,2539.9,2539.8,16.05031789]
[1748894717537,0.02,2539.9,2539.8,11.93731789]
[1748894718090,0.02,2539.9,2539.8,3.93731789]
[1748894718426,0.02,2539.9,2539.8,11.93731789]
[1748894720238,0.02,2539.9,2539.8,3.93731789]
[1748894720390,0.8435,2539.9,2539.8,3.93731789]
[1748894720833,0.8435,2539.9,2539.8,11.93731789]
[1748894721456,0.7719,2539.8,2539.7,3.93740822]
[1748894721595,5.42403799,2539.8,2539.7,3.93740822]
[1748894722140,0.7719,2539.7,2539.6,3.93750959]
[1748894722317,0.8211208,2539.7,2539.2,0.04569818]
[1748894722508,5.42403799,2539.6,2539.5,3.93769624]
[1748894722694,0.7623,2539.5,2539.4,3.93793809]
[1748894722890,0.81152497,2539.5,2539.4,3.93793809]
[1748894723337,4.92452497,2539.5,2539.4,3.93793809]
[1748894723629,4.8753,2539.5,2539.4,3.93793809]
[1748894723836,0.8222,2539.4,2539.3,3.93802387]
[1748894724019,0.8222,2539.3,2539.2,0.04569818]
[1748894724236,0.8222,2539.3,2539.2,3.98394644]
[1748894733059,5.44993799,2539.3,2539.2,3.98394644]
[1748894735657,9.56293799,2539.3,2539.2,3.98394644]
[1748894735818,10.57838065,2539.3,2539.2,3.98394644]
[1748894737773,4.9108,2539.3,2539.2,3.98394644]
[1748894739484,9.56293799,2539.3,2539.2,3.98394644]
[1748894740076,4.9108,2539.3,2539.2,3.98394644]
[1748894743249,0.7978,2539.3,2539.2,3.98394644]
[1748894743451,4.9108,2539.3,2539.2,3.98394644]
[1748894753733,5.65559328,2539.3,2539.2,3.98394644]
[1748894754740,4.9108,2539.3,2539.2,3.98394644]
[1748894756122,0.7978,2539.3,2539.2,3.98394644]
[1748894756320,0.0492284,2539.4,2539.3,3.93809317]
[1748894756530,0.7636,2539.8,2539.7,3.93747292]
[1748894756816,4.8756,2539.8,2539.7,3.93747292]
[1748894757022,6.21992383,2539.8,2539.7,3.93747292]
[1748894757423,10.87206182,2539.8,2539.7,3.93747292]
[1748894758601,10.87206182,2539.8,2539.3,3.93809317]
[1748894758802,0.04922377,2539.7,2539.6,3.93762797]
[1748894759727,10.87206182,2539.8,2539.7,3.93747292]
[1748894763866,0.7636,2539.8,2539.7,3.93747292]
[1748894764156,0.02,2539.9,2539.8,3.93731789]
[1748894764342,4.131,2539.9,2539.8,3.93731789]
[1748894764651,0.02,2539.9,2539.8,3.93731789]
[1748894764851,4.131,2539.9,2539.8,3.93731789]
[1748894765557,0.02,2539.9,2539.8,3.93731789]
[1748894765857,0.02,2539.9,2539.8,4.72510942]
[1748894766151,0.02,2539.9,2539.8,12.72510942]
[1748894766152,4.13,2539.9,2539.8,12.72510942]
[1748894766355,4.13,2539.9,2539.8,12.70571789]
[1748894766555,0.02,2539.9,2539.8,12.70571789]
[1748894766860,0.02,2539.9,2539.8,17.35785588]
[1748894768054,0.02,2539.9,2539.8,19.00485588]
[1748894772256,0.02,2539.9,2539.8,23.77485588]
[1748894777679,0.02,2539.9,2539.8,27.88185588]
[1748894778758,0.02,2539.9,2539.8,17.47571789]
[1748894778959,0.02,2539.9,2539.8,3.93731789]
[1748894779647,0.02,2539.9,2539.8,11.93731789]
[1748894788709,0.02,2539.9,2539.8,12.70031789]
[1748894789029,0.02,2539.9,2539.8,18.02031789]
[1748894793614,0.02,2539.9,2539.8,19.11431789]
[1748894798017,0.02,2540.9,2540.7,4.71072317]
[1748894798186,0.02,2540.9,2540.8,11.95510874]
[1748894798385,0.02,2540.9,2540.8,11.93576826]
[1748894801826,0.02,2540.9,2540.8,16.70576826]
[1748894805936,0.02,2540.9,2540.8,16.58790625]
[1748894806149,0.02,2541.9,2541.8,3.93421984]
[1748894806366,0.02,2541.9,2541.8,11.93421984]
[1748894808232,0.8042,2541.9,2541.8,11.93421984]
[1748894814972,0.02,2541.9,2541.8,11.93421984]
[1748894818564,0.02,2541.9,2541.8,3.93421984]
[1748894818565,0.7887,2541.9,2541.8,3.93421984]
[1748894818721,1.79687984,2541.9,2541.8,3.93421984]
[1748894818927,0.7887,2541.9,2541.8,3.93421984]
[1748894819462,0.7887,2541.9,2541.8,11.93421984]
[1748894826032,0.02,2541.9,2541.8,11.93421984]
[1748894830570,0.02,2541.9,2541.8,12.74261984]
[1748894835710,0.8447,2541.9,2541.8,3.93421984]
[1748894835898,1.3943838,2541.9,2541.8,3.93421984]
[1748894836199,1.3943838,2541.9,2541.8,11.93421984]
[1748894836495,1.3943838,2541.9,2541.8,3.93421984]
[1748894836877,1.3943838,2541.9,2541.8,11.93421984]
[1748894838021,0.8447,2541.9,2541.8,11.93421984]
[1748894838310,0.02,2541.9,2541.8,11.93421984]
[1748894842013,5.48393799,2541.9,2541.8,11.93421984]
[1748894842226,5.53311653,2541.9,2541.8,11.93421984]
[1748894843196,5.48393799,2541.9,2541.8,11.93421984]
[1748894843394,6.44684972,2541.9,2541.8,11.93421984]
[1748894844825,6.44684972,2541.9,2541.8,3.93421984]
[1748894846231,1.79471173,2541.9,2541.8,3.93421984]
[1748894846443,6.44684972,2541.9,2541.8,3.93421984]
[1748894849139,10.54184972,2541.9,2541.8,3.93421984]
[1748894851926,0.8318,2541.9,2541.8,3.93421984]
[1748894852830,0.02,2541.9,2541.8,3.93421984]
[1748894855440,0.02,2541.9,2541.8,11.93421984]
[1748894866254,0.02,2541.9,2541.8,12.72341984]
[1748894866604,0.02,2541.9,2541.8,11.93421984]
[1748894870358,0.7721,2541.9,2541.8,11.93421984]
[1748894870560,0.82127791,2541.9,2541.8,11.93421984]
[1748894870801,0.7721,2541.9,2541.8,11.93421984]
[1748894871473,0.02,2541.9,2541.8,11.93421984]
[1748894884366,0.02,2541.9,2541.8,12.72491984]
[1748894886611,0.02,2541.9,2541.8,16.81391984]
[1748894888420,0.02,2541.9,2541.8,11.93421984]
[1748894896711,0.06917468,2541.9,2541.8,11.93421984]
[1748894896914,0.61905595,2541.9,2541.8,11.93421984]
[1748894898215,1.39645595,2541.9,2541.8,3.93421984]
[1748894898737,1.34728127,2541.9,2541.8,3.93421984]
[1748894898945,1.39645949,2541.9,2541.8,3.93421984]
[1748894899759,0.56988127,2541.9,2541.8,3.93421984]
[1748894900049,0.02,2541.9,2541.8,3.93421984]
[1748894903973,0.02,2541.9,2541.8,11.93421984]
[1748894905672,0.02,2541.9,2541.8,16.02021984]
[1748894909682,0.02,2541.9,2541.8,16.80461984]
[1748894913192,0.02,2541.9,2541.8,12.71861984]
[1748894913490,0.02,2541.9,2541.8,11.93421984]
[1748894914403,0.02,2541.9,2541.8,12.71861984]
[1748894918656,0.02,2541.9,2541.8,16.80261984]
[1748894925418,0.02,2541.9,2541.8,16.80161984]
[1748894928813,0.02,2541.9,2541.8,16.80061984]
[1748894932499,0.02,2541.9,2541.8,16.79961984]
[1748894934740,0.02,2541.9,2541.8,12.71861984]
[1748894934904,0.02,2541.9,2541.8,16.79961984]
[1748894939763,0.02,2541.9,2541.8,17.87961984]
[1748894939936,0.02,2541.9,2541.8,12.71861984]
[1748894940319,0.02,2541.9,2541.8,17.87961984]
[1748894940501,0.02,2541.9,2541.8,12.71861984]
[1748894940837,0.02,2541.9,2541.8,16.79861984]
[1748894942759,0.02,2541.9,2541.8,17.87961984]
[1748894943623,0.02,2541.9,2541.8,18.39524722]
[1748894943822,0.02,2541.9,2541.8,18.96264638]
[1748894945621,0.02,2541.9,2541.8,18.96164638]
[1748894949789,0.02,2542.9,2542.8,3.93267264]
[1748894949983,0.02,2542.9,2542.7,3.9328273]
[1748894949984,0.764,2542.8,2542.7,3.9328273]
[1748894950143,1.8576138,2542.7,2542.6,3.93298198]
[1748894950341,1.3076138,2542.7,2542.6,3.93298198]
[1748894950537,0.764,2542.7,2542.6,3.93298198]
[1748894954787,5.41613799,2542.7,2542.6,3.93298198]
[1748894957383,5.46530324,2542.7,2542.6,3.93298198]
[1748894958195,5.41613799,2542.7,2542.6,3.93298198]
[1748894963003,5.96613799,2542.7,2542.1,8.0]
[1748894963213,5.45803799,2542.2,2542.1,3.93375555]
[1748894964084,0.8059,2542.2,2542.1,3.93375555]
[1748894964600,0.60153032,2542.6,2541.9,11.93406506]
[1748894964601,0.04917179,2542.6,2541.9,11.93406506]
[1748894964834,0.04917179,2542.6,2542.5,3.93313667]
[1748894964986,0.82707179,2542.6,2542.5,3.93313667]
[1748894965303,1.83759277,2542.6,2542.5,3.93313667]
[1748894965898,2.38759277,2542.6,2542.3,3.93335885]
[1748894966110,5.98003799,2542.5,2542.4,3.9332117]
[1748894967872,5.98003799,2542.5,2542.3,3.93342402]
[1748894967873,0.7945,2542.4,2542.2,3.9335799]
[1748894968074,0.6774538,2542.3,2542.2,3.9335799]
[1748894976228,1.2274538,2542.3,2542.2,3.9335799]
[1748894978036,0.6774538,2542.3,2542.2,3.9335799]
[1748894980030,0.8436726,2542.4,2542.3,3.93344609]
[1748894980197,0.7945,2542.4,2542.3,3.93344609]
[1748894981197,0.04917026,2542.5,2542.4,3.93329137]
[1748894981495,0.06916744,2542.9,2542.8,3.93267264]
[1748894981725,0.57,2542.9,2542.8,3.93267264]
[1748894981900,1.1339995,2542.9,2542.8,3.93267264]
[1748894982095,0.5839995,2542.9,2542.8,3.93267264]
[1748894982317,0.02,2542.9,2542.8,3.93267264]
[1748894983295,0.02,2542.9,2542.8,11.93267264]
[1748894983496,0.02,2542.9,2542.8,12.71577264]
[1748894983697,0.02,2542.9,2542.8,17.36791063]
[1748894984135,0.02,2542.9,2542.8,12.71577264]
[1748894984709,0.02,2542.9,2542.8,17.36791063]
[1748894985553,0.02,2543.9,2543.8,3.93112666]
[1748894985761,0.02,2543.9,2543.8,12.71422666]
[1748894986049,0.02,2543.9,2543.8,17.36636465]
[1748894987130,0.02,2543.9,2543.8,12.71422666]
[1748894988647,2.42941861,2544.9,2544.8,11.92958189]
[1748894988848,2.67236047,2544.9,2544.8,11.92958189]
[1748894989144,2.67236047,2544.9,2544.8,3.92958189]
[1748894989651,0.55,2544.6,2543.9,3.93085679]
[1748894989859,5.25127202,2544.5,2544.4,3.93012143]
[1748894990230,0.04913403,2544.5,2544.4,3.93012143]
[1748894990571,0.04912916,2544.6,2544.4,3.93012143]
[1748894990730,0.60023587,2544.6,2544.4,3.93012143]
[1748894991332,0.60023587,2544.6,2544.5,3.93004519]
[1748894991567,0.60023587,2544.6,2544.4,3.93016868]
[1748894991865,0.60023587,2544.6,2544.4,3.93009381]
[1748894992062,0.60023587,2544.6,2544.0,3.93078321]
[1748894992063,4.65213799,2544.5,2544.0,3.93081761]
[1748894992226,4.65213799,2544.3,2544.1,3.9306631]
[1748894992426,0.85893456,2544.2,2544.1,3.9306631]
[1748894993046,0.85893456,2544.2,2543.6,0.7831]
[1748894993047,0.85893456,2544.2,2543.3,0.7732]
[1748894993242,4.65213799,2544.1,2544.0,3.9306964]
[1748894993447,1.40893456,2544.2,2544.1,3.9306631]
[1748894993768,2.47466555,2544.2,2544.1,3.9306631]
[1748894995567,1.92466555,2544.2,2544.1,3.9306631]
[1748894996064,1.06573099,2544.2,2544.1,3.9306631]
[1748894996270,0.0491357,2544.2,2544.1,3.9306631]
[1748894997130,0.52523739,2544.4,2544.2,3.9305086]
[1748894997131,0.04913454,2544.3,2544.2,3.9305086]
[1748895000031,0.04913241,2544.4,2544.3,3.93035412]
[1748895000274,0.55,2543.8,2542.9,0.8141]
[1748895000573,4.65213799,2543.3,2542.4,4.8841]
[1748895000741,4.65213799,2543.3,2543.2,3.9320541]
[1748895001143,5.11735179,2543.3,2543.1,3.93207775]
[1748895001356,1.3432,2543.2,2543.1,3.93220872]
[1748895002477,0.39634949,2544.5,2544.4,3.93019965]
[1748895002676,4.7012701,2544.5,2544.4,3.93019965]
[1748895002874,0.59732912,2544.5,2544.4,3.93019965]
[1748895003076,4.7012701,2544.5,2544.4,3.93019965]
[1748895003282,0.04913211,2544.5,2544.4,3.93019965]
[1748895003940,0.04912943,2544.6,2544.5,3.93004519]
[1748895004150,0.59912943,2544.6,2544.5,3.93004519]
[1748895004594,0.55,2544.5,2544.0,8.0]
[1748895004880,0.55,2544.3,2544.2,3.9304221]
[1748895005077,1.92220906,2544.3,2544.2,3.9304221]
[1748895005584,1.00370206,2544.3,2544.2,3.9304221]
[1748895005740,0.59913501,2544.4,2544.3,3.93035412]
[1748895006095,4.66913501,2544.4,2544.3,3.93035412]
[1748895006644,5.0376405,2544.4,2544.3,3.93035412]
[1748895006844,4.66913501,2544.4,2544.3,3.93035412]
[1748895008083,0.55,2544.1,2543.3,0.7798]
[1748895008255,10.77848571,2544.2,2544.1,3.9306631]
[1748895008456,16.03383428,2544.2,2544.1,3.9306631]
[1748895009181,6.59594857,2544.2,2544.1,3.9306631]
[1748895010249,7.01363917,2544.2,2544.1,3.9306631]
[1748895010457,6.64508504,2544.2,2544.1,3.9306631]
[1748895011988,2.57508504,2544.2,2544.1,3.9306631]
[1748895012291,5.45973647,2544.2,2544.1,3.9306631]
[1748895012651,1.38973647,2544.2,2544.1,3.9306631]
[1748895012848,5.45973647,2544.2,2544.1,3.9306631]
[1748895013483,0.55,2544.1,2543.1,3.93207307]
[1748895013683,9.98788571,2543.9,2543.8,3.93112666]
[1748895013873,9.98788571,2543.9,2543.7,3.93120727]
[1748895013874,14.05788571,2543.9,2543.7,3.93120727]
[1748895014071,14.05788571,2543.9,2543.5,3.93156122]
[1748895014072,0.04914401,2543.8,2543.6,3.9313738]
[1748895014272,10.22848571,2543.7,2543.5,3.93159032]
[1748895014488,0.55,2543.5,2543.0,4.71214603]
[1748895014788,9.48703923,2543.4,2543.3,3.9318995]
[1748895014987,9.43788571,2543.4,2543.3,3.9318995]
[1748895015496,9.43788571,2543.4,2543.2,3.93202456]
[1748895015497,0.55,2543.3,2543.2,3.93200272]
[1748895015794,4.62,2543.3,2543.2,3.93200272]
[1748895016089,5.037762,2543.3,2542.5,0.7962]
[1748895016261,4.66915338,2543.3,2543.2,3.9320541]
[1748895016464,6.62584529,2543.3,2543.2,3.9320541]
[1748895017656,6.99451063,2543.3,2543.2,3.9320541]
[1748895017889,6.62584529,2543.3,2543.2,3.9320541]
[1748895018062,6.99451044,2543.3,2543.2,3.9320541]
[1748895018267,5.06066505,2543.3,2543.2,3.9320541]
[1748895022470,5.83196505,2543.3,2542.5,4.72920877]
[1748895022672,0.55,2543.2,2543.1,3.93214387]
[1748895022864,2.13198508,2543.2,2543.1,3.93214387]
[1748895023696,0.55,2543.1,2543.0,3.93226209]
[1748895023895,4.6701581,2543.1,2543.0,3.93226209]
[1748895025808,5.03876058,2543.1,2543.0,3.93226209]
[1748895025971,4.6701581,2543.1,2543.0,3.93226209]
[1748895026171,6.72405206,2543.1,2543.0,3.93226209]
[1748895026373,6.35544216,2543.1,2543.0,3.93226209]
[1748895029295,5.10544216,2543.1,2543.0,3.93226209]
[1748895029807,5.47405874,2543.1,2543.0,3.93226209]
[1748895030019,5.10544216,2543.1,2543.0,3.93226209]
[1748895031179,5.65544216,2543.1,2543.0,3.93226209]
[1748895032599,2.23528406,2543.1,2543.0,3.93226209]
[1748895032922,0.7943,2543.5,2543.4,3.9317449]
[1748895033078,1.075,2543.6,2543.5,3.93159032]
[1748895033478,5.146,2543.6,2543.5,3.93159032]
[1748895034323,1.075,2543.6,2543.5,3.93159032]
[1748895034509,5.146,2543.6,2543.5,4.71399032]
[1748895036424,1.075,2543.6,2543.5,4.71399032]
[1748895037429,0.02988174,2544.0,2543.5,12.71399032]
[1748895037640,0.8193,2544.8,2544.7,3.92973631]
[1748895037795,2.42941861,2544.9,2544.8,3.92958189]
[1748895037995,7.23111047,2544.9,2544.8,3.92958189]
[1748895038232,7.599541,2544.9,2544.8,3.92958189]
[1748895038410,7.23111047,2544.9,2544.8,3.92958189]
[1748895038623,2.42941861,2544.9,2544.8,3.92958189]
[1748895040348,2.42941861,2544.9,2544.8,12.70488189]
[1748895046511,2.42941861,2544.9,2544.8,16.77288189]
[1748895048428,1.0,2545.6,2545.5,3.92850127]
[1748895048664,1.0,2545.6,2545.5,26.54665727]
[1748895048833,1.0,2545.6,2545.5,21.36638698]
[1748895049033,1.0,2545.6,2545.5,26.50738698]
[1748895049364,1.0,2545.6,2545.5,27.05738698]
[1748895049532,1.0,2545.6,2545.5,21.36638698]
[1748895049731,1.0,2545.6,2545.5,26.50738698]
[1748895050687,1.0,2545.6,2545.5,11.92850127]
[1748895050830,0.25,2545.6,2545.5,11.92850127]
[1748895051350,0.25,2545.6,2545.5,3.92850127]
[1748895051749,0.27988174,2545.6,2545.5,3.92850127]
[1748895052323,0.64815361,2545.6,2545.5,3.92850127]
[1748895052540,0.25,2545.6,2545.5,3.92850127]
[1748895052743,0.64817539,2545.6,2545.5,3.92850127]
[1748895052999,0.64817543,2545.6,2545.5,3.92850127]
[1748895053141,0.27988174,2545.6,2545.5,3.92850127]
[1748895053590,0.55,2545.5,2545.1,3.92906027]
[1748895053793,0.55,2545.5,2544.3,3.93023401]
[1748895053794,0.7982,2545.3,2545.2,3.92896432]
[1748895054002,0.7982,2545.3,2544.6,3.92979344]
[1748895054139,0.02988174,2545.2,2545.1,3.92901613]
[1748895054659,0.7982,2545.3,2545.2,3.92896432]
[1748895054842,1.16654431,2545.3,2545.2,3.92896432]
[1748895055042,0.7982,2545.3,2545.2,3.92896432]
[1748895055671,0.7982,2545.3,2545.0,3.92921323]
[1748895055839,1.83750817,2545.6,2544.7,11.9689926]
[1748895056043,0.29684256,2545.5,2545.1,3.92904611]
[1748895056240,0.55,2545.4,2545.0,3.92924237]
[1748895056485,0.7519,2545.2,2545.0,3.92924237]
[1748895056683,0.7519,2545.2,2544.9,3.92937285]